Workbook

Sheet Datos básicos
B1: Datos básicos | J1: Instrucciones de tramitación para los receptores: Introduzca primero los siguientes datos básicos antes de rellenar la hoja “Presupuesto financiamientos”. Rellene solo las celdas con fondo azul. Todas las demás celdas se calculan automáticamente.
B3: Nombre del receptor: | H3: =IF(C3="Bitte eintragen","- Bitte den Namen Ihres Vereins im Feld <Name des Zuschussempfängers> eintragen; "," ") -> 
B5: ¿Se trata del primer presupuesto o de una adaptación del contrato? | C5: Seleccionar | F5: =IF(C5="Complemento al contrato","¿Qué número de adaptación del contrato?:","") ->  | G5: Seleccionar solo en caso de complemento al contrato | H5: =IF(C5="Vertragsanpassung",1,0) -> 0
B6: Título del proyecto | H6: =IF(C6="Veranstaltung",1,IF(C6="Projekt",1,0)) -> 0
B7: Número del contrato
B8: ¿Necesita costos generales de administración? | C8: Seleccionar | D8: Indicar el importe de los costos generales de administración en porcentaje | H8: =IF(C8="Ja, anderer Betrag",1,0) -> 0
B9: ¿Aporta usted una contribución (financiera) propia? | C9: Seleccionar | D9: Importe en EUR | H9: =IF(C9="Ja, anderer Betrag",1,0) -> 0
B10: ¿Cuántos donantes está previsto que cofinancien el proyecto (además de la GIZ)? | C10: 0 | D10: Nombre del proveedor externo de fondos | E10: LLL | F10: Importe de los fondos de terceros en EUR | G10: 300
D11: Nombre del proveedor externo de fondos | E11: ccc | F11: Importe de los fondos de terceros en EUR | G11: 400 | H11: =IF(C11="Ja",1,0) -> 0
D12: Nombre del proveedor externo de fondos | E12: ddd | F12: Importe de los fondos de terceros en EUR | G12: 500 | H12: =IF(C12="Ja",1,0) -> 0
D13: Nombre del proveedor externo de fondos | E13: FFF | F13: Importe de los fondos de terceros en EUR | G13: 600
D14: Nombre del proveedor externo de fondos | E14: HHH | F14: Importe de los fondos de terceros en EUR | G14: 700
D15: Nombre del proveedor externo de fondos | E15: LLL | F15: Importe de los fondos de terceros en EUR | G15: 800
D16: Nombre del proveedor externo de fondos | E16: MMM | F16: Importe de los fondos de terceros en EUR | G16: 900
B17: ¿Está previsto transferir financiamientos a receptores terceros? (Tenga en cuenta que no se está haciendo referencia a prestaciones). | C17: Seleccionar | D17: Son contrapartes que implementan de forma autónoma una parte del proyecto del receptor. Debe presentarse un presupuesto aparte y el proyecto de la GIZ debe realizar un examen de la aptitud comercial y jurídica (solo los criterios de personalidad jurídica y utilidad pública).
B18: ¿Se adquieren medicamentos y/o pesticidas y/o fertilizantes minerales? | C18: Seleccionar | D18: Es necesario un proceso de autorización interno de la GIZ aparte.
B19: ¿La cuota de adquisición de equipos y materiales es superior a 1.000.000 de euros o más del 50% con un valor contractual del financiamiento de al menos 400.000 euros? | C19: Seleccionar | D19: Es necesario un proceso de autorización interno de la GIZ aparte.
B20: ¿Se financian medidas de construcción? | C20: Seleccionar | D20: Dado el caso, puede ser necesario un proceso de autorización interno de la GIZ aparte. Tenga en cuenta que las medidas de construcción en el marco de un contrato de subvención local sólo son autorizadas por la GIZ en raras excepciones.
B21: ¿Desea que se muestren ayudas para la introducción de datos en el presupuesto? Se recomienda responder “Sí” para la edición. Se recomienda responder “No” para una mejor visión de conjunto. | C21: Seleccionar
B23: Fecha de la creación del presupuesto:

Sheet Presupuesto financiamientos
A1: =IF('Datos básicos'!C3="","Introduzca primero los datos básicos",CONCATENATE("Presupuesto - Anexo 1",CHAR(10),'Datos básicos'!C3," - ",'Datos básicos'!C6,"",'Datos básicos'!E6,"",IF(L5="VE",CONCATENATE(" - ",'Datos básicos'!G5," Complemento al contrato",""),""))) -> Introduzca primero los datos básicos | J1: ='Datos básicos'!C23 -> 00:00:00 | N1: Sin cambios | O1: Instrucciones: Introduzca primero los datos básicos antes de rellenar esta hoja “Presupuesto financiamientos”. En la hoja “Presupuesto financiamientos” rellene solo las celdas con fondo azul. Todas las demás celdas se calculan automáticamente.
A2: =IF(NOT(ISBLANK('Datos básicos'!C7)),CONCATENATE("Número del contrato:",'Datos básicos'!C7),"") -> 
J3: 2024-09 | N3: cambios
B4: Descripción | C4: Có- digo | D4: Número | E4: Unidad (persona) | F4: Número | G4: Unidad (p. ej.,mes, contrato, vuelo…) | H4: Subvencio-nable hasta en EUR (precio por unidad) | I4: Contribución total de la GIZ en EUR (hasta) | J4: Contribución propia / financiamiento de terceros en EUR (hasta) | L4: =IF($L$5="VE",CONCATENATE("En el caso de ajustes contractuales",CHAR(10),"¿Ha cambiado la línea presupuestaria?"),"") ->  | O4: Indicaciones generales: Este formato del presupuesto es válido como base de liquidación. Si lo desea, para su uso interno puede crear otros archivos con información más detallada. Todas las partidas indicadas en el presupuesto se deben reflejar en la descripción del proyecto para que quede clara la referencia al proyecto. La tabla dispone de fórmulas que deben mantenerse. Mantenga el formato con dos decimales. Se recomienda redondear al alza las unidades en la medida de lo posible. Los costos se acuerdan con un valor de “hasta”.
B5: =IF('Datos básicos'!C21="Sí",CONCATENATE("Nota: Las celdas con fondo azul deben ser rellenados por ",IF('Datos básicos'!C3=""," el receptor",'Datos básicos'!C3)),"") ->  | I5: =IF('Datos básicos'!C21="Sí","Nota: se calculan automáticamente","") ->  | L5: =IF('Datos básicos'!C5="Complemento al contrato","VE","NOVE") -> NOVE
A6: 1 | B6: Personal (Nota: Sólo pueden liquidarse costos directos de personal (costo bruto mensual del personal para el empleador). Los suplementos, como los costos generales de personal, que se calculan de manera prorrateada sobre el personal, no son subvencionables. Indique únicamente los títulos de las funciones, no los nombres de las personas. a) Costes de colaboradores y colaboradoras asalariados del receptor (sólo empleados de su organización): la acreditación debe realizarse en forma de liquidaciones salariales o, en el caso de financiamientos parciales, en forma de liquidaciones salariales y registros de tiempos trabajados; (véase el enlace en 1b). b) Costes de peritos y peritas integrados, quienes son personas autoempleadas o empleadas por un tercero y cedidas al receptor y que, por tanto, no trabajan sobre la base de un contrato de trabajo con el receptor, sino que lo hacen siguiendo las instrucciones / bajo la supervisión del receptor, toda vez que lo permita la ley aplicable al contrato de los peritos y peritas integrados. Para las formas de prueba, véase: Requisitos en cuanto al presupuesto y a la ejecución financiera (Anexo 3a).) | D6: =IF('Datos básicos'!C21="Sí",CONCATENATE("Ayuda:",Ejemplo!O5),"") ->  | I6: =SUM(I7:I43) -> 0.00 € | J6: Debe evitarse la financiación prorrateada de las partidas presupuestarias y aplicarse únicamente a los costes de personal y a los costes de reparto equitativo (costes "Fair-Shared"). Otros costes incurridos en el curso de la ejecución del proyecto que no sean financiados por la GIZ deberán calcularse por separado, ya sea como contribución propia o como financiamiento de terceros. | L6: =IF(L5="VE","ATENCIÓN: La GIZ no puede asumir los costos que se generan por las fluctuaciones cambiarias.","") -> 
E7: Persona | G7: Meses | I7: =ROUND(D7*F7*H7,2) -> 0.00 € | L7: Sin cambios
E8: Persona | G8: Meses | I8: =ROUND(D8*F8*H8,2) -> 0.00 € | L8: Sin cambios
E9: Persona | G9: Meses | I9: =ROUND(D9*F9*H9,2) -> 0.00 € | L9: Sin cambios
E10: Persona | G10: Meses | I10: 0.00 € | L10: Sin cambios
E11: Persona | G11: Meses | I11: 0.00 € | L11: Sin cambios
E12: Persona | G12: Meses | I12: 0.00 € | L12: Sin cambios
E13: Persona | G13: Meses | I13: 0.00 € | L13: Sin cambios
E14: Persona | G14: Meses | I14: 0.00 € | L14: Sin cambios
E15: Persona | G15: Meses | I15: 0.00 € | L15: Sin cambios
E16: Persona | G16: Meses | I16: 0.00 € | L16: Sin cambios
E17: Persona | G17: Meses | I17: 0.00 € | L17: Sin cambios
E18: Persona | G18: Meses | I18: 0.00 € | L18: Sin cambios
E19: Persona | G19: Meses | I19: 0.00 € | L19: Sin cambios
E20: Persona | G20: Meses | I20: 0.00 € | L20: Sin cambios
E21: Persona | G21: Meses | I21: 0.00 € | L21: Sin cambios
E22: Persona | G22: Meses | I22: 0.00 € | L22: Sin cambios
E23: Persona | G23: Meses | I23: 0.00 € | L23: Sin cambios
E24: Persona | G24: Meses | I24: 0.00 € | L24: Sin cambios
E25: Persona | G25: Meses | I25: 0.00 € | L25: Sin cambios
E26: Persona | G26: Meses | I26: 0.00 € | L26: Sin cambios
E27: Persona | G27: Meses | I27: 0.00 € | L27: Sin cambios
E28: Persona | G28: Meses | I28: 0.00 € | L28: Sin cambios
E29: Persona | G29: Meses | I29: 0.00 € | L29: Sin cambios
E30: Persona | G30: Meses | I30: 0.00 € | L30: Sin cambios
E31: Persona | G31: Meses | I31: 0.00 € | L31: Sin cambios
E32: Persona | G32: Meses | I32: 0.00 € | L32: Sin cambios
E33: Persona | G33: Meses | I33: 0.00 € | L33: Sin cambios
E34: Persona | G34: Meses | I34: 0.00 € | L34: Sin cambios
E35: Persona | G35: Meses | I35: 0.00 € | L35: Sin cambios
E36: Persona | G36: Meses | I36: 0.00 € | L36: Sin cambios
E37: Persona | G37: Meses | I37: 0.00 € | L37: Sin cambios
E38: Persona | G38: Meses | I38: 0.00 € | L38: Sin cambios
E39: Persona | G39: Meses | I39: 0.00 € | L39: Sin cambios
E40: Persona | G40: Meses | I40: 0.00 € | L40: Sin cambios
E41: Persona | G41: Meses | I41: 0.00 € | L41: Sin cambios
E42: Persona | G42: Meses | I42: =ROUND(D42*F42*H42,2) -> 0.00 € | L42: Sin cambios
E43: Persona | G43: Meses | I43: 0.00 € | L43: Sin cambios
A44: 2 | B44: Servicios externos (tipo/contenido del servicio) | D44: =IF('Datos básicos'!C21="Sí",CONCATENATE("Ayuda:",Ejemplo!O11),"") ->  | I44: =SUM(I45:I73) -> 0.00 €
D45: Contrato/contratos | I45: =ROUND(H45,2) -> 0.00 € | L45: Sin cambios
D46: Contrato/contratos | I46: =ROUND(H46,2) -> 0.00 € | L46: Sin cambios
D47: Contrato/contratos | I47: 0.00 € | L47: Sin cambios
D48: Contrato/contratos | I48: 0.00 € | L48: Sin cambios
D49: Contrato/contratos | I49: 0.00 € | L49: Sin cambios
D50: Contrato/contratos | I50: 0.00 € | L50: Sin cambios
D51: Contrato/contratos | I51: 0.00 € | L51: Sin cambios
D52: Contrato/contratos | I52: 0.00 € | L52: Sin cambios
D53: Contrato/contratos | I53: 0.00 € | L53: Sin cambios
D54: Contrato/contratos | I54: 0.00 € | L54: Sin cambios
D55: Contrato/contratos | I55: 0.00 € | L55: Sin cambios
D56: Contrato/contratos | I56: 0.00 € | L56: Sin cambios
D57: Contrato/contratos | I57: 0.00 € | L57: Sin cambios
D58: Contrato/contratos | I58: 0.00 € | L58: Sin cambios
D59: Contrato/contratos | I59: 0.00 € | L59: Sin cambios
D60: Contrato/contratos | I60: 0.00 € | L60: Sin cambios
D61: Contrato/contratos | I61: 0.00 € | L61: Sin cambios
D62: Contrato/contratos | I62: 0.00 € | L62: Sin cambios
D63: Contrato/contratos | I63: 0.00 € | L63: Sin cambios
D64: Contrato/contratos | I64: 0.00 € | L64: Sin cambios
D65: Contrato/contratos | I65: 0.00 € | L65: Sin cambios
D66: Contrato/contratos | I66: 0.00 € | L66: Sin cambios
D67: Contrato/contratos | I67: 0.00 € | L67: Sin cambios
D68: Contrato/contratos | I68: 0.00 € | L68: Sin cambios
D69: Contrato/contratos | I69: 0.00 € | L69: Sin cambios
D70: Contrato/contratos | I70: 0.00 € | L70: Sin cambios
D71: Contrato/contratos | I71: 0.00 € | L71: Sin cambios
D72: Contrato/contratos | I72: 0.00 € | L72: Sin cambios
D73: Contrato/contratos | I73: =ROUND(H73,2) -> 0.00 € | L73: Sin cambios
A74: 3 | B74: Costos de transporte / gastos de viaje | D74: =IF('Datos básicos'!C21="Sí",CONCATENATE("Ayuda:",Ejemplo!O22),"") ->  | I74: =SUM(I75:I92) -> 0.00 €
I75: =ROUND(H75,2) -> 0.00 € | L75: Sin cambios
I76: =ROUND(H76,2) -> 0.00 € | L76: Sin cambios
I77: 0.00 € | L77: Sin cambios
I78: 0.00 € | L78: Sin cambios
I79: 0.00 € | L79: Sin cambios
I80: 0.00 € | L80: Sin cambios
I81: 0.00 € | L81: Sin cambios
I82: 0.00 € | L82: Sin cambios
I83: 0.00 € | L83: Sin cambios
I84: 0.00 € | L84: Sin cambios
I85: 0.00 € | L85: Sin cambios
I86: 0.00 € | L86: Sin cambios
I87: 0.00 € | L87: Sin cambios
I88: 0.00 € | L88: Sin cambios
I89: 0.00 € | L89: Sin cambios
I90: 0.00 € | L90: Sin cambios
I91: 0.00 € | L91: Sin cambios
I92: =ROUND(H92,2) -> 0.00 € | L92: Sin cambios
A93: 4 | B93: Compensación de CO2 por viajes en avión | D93: =IF('Datos básicos'!C21="Sí",CONCATENATE("Ayuda: ",Ejemplo!O30),"") ->  | I93: =SUM(I94:I98) -> 0.00 €
D94: Compensación | I94: =ROUND(H94,2) -> 0.00 € | L94: Sin cambios
D95: Compensación | I95: =ROUND(H95,2) -> 0.00 € | L95: Sin cambios
D96: Compensación | I96: 0.00 € | L96: Sin cambios
D97: Compensación | I97: 0.00 € | L97: Sin cambios
D98: Compensación | I98: 0.00 € | L98: Sin cambios
A99: 5 | B99: Adquisición de equipos y materiales | D99: =IF('Datos básicos'!C21="Sí",CONCATENATE("Ayuda:",Ejemplo!O37),"") ->  | I99: =SUM(I100:I115) -> 0.00 € | K99: =IF(I161>400000,1,0)+(IF(I99>=(I161/2),1,0)) -> 1
I100: =ROUND(H100,2) -> 0.00 € | L100: Sin cambios
I101: =ROUND(H101,2) -> 0.00 € | L101: Sin cambios
I102: 0.00 € | L102: Sin cambios
I103: 0.00 € | L103: Sin cambios
I104: 0.00 € | L104: Sin cambios
I105: 0.00 € | L105: Sin cambios
I106: 0.00 € | L106: Sin cambios
I107: 0.00 € | L107: Sin cambios
I108: 0.00 € | L108: Sin cambios
I109: 0.00 € | L109: Sin cambios
I110: 0.00 € | L110: Sin cambios
I111: 0.00 € | L111: Sin cambios
I112: 0.00 € | L112: Sin cambios
I113: 0.00 € | L113: Sin cambios
I114: 0.00 € | L114: Sin cambios
I115: 0.00 € | L115: Sin cambios
A116: 6 | B116: Otros costos / consumibles | D116: =IF('Datos básicos'!C21="Sí",CONCATENATE("Ayuda:",Ejemplo!O48),"") ->  | I116: =SUM(I117:I132) -> 0.00 €
I117: =ROUND(H117,2) -> 0.00 € | L117: Sin cambios
I118: =ROUND(H118,2) -> 0.00 € | L118: Sin cambios
I119: 0.00 € | L119: Sin cambios
I120: 0.00 € | L120: Sin cambios
I121: 0.00 € | L121: Sin cambios
I122: 0.00 € | L122: Sin cambios
I123: 0.00 € | L123: Sin cambios
I124: 0.00 € | L124: Sin cambios
I125: 0.00 € | L125: Sin cambios
I126: 0.00 € | L126: Sin cambios
I127: 0.00 € | L127: Sin cambios
I128: 0.00 € | L128: Sin cambios
I129: 0.00 € | L129: Sin cambios
I130: 0.00 € | L130: Sin cambios
I131: 0.00 € | L131: Sin cambios
I132: 0.00 € | L132: Sin cambios
A133: 7 | B133: Recursos para apoyar directamente a beneficiarios terceros (Indicación: Esta línea presupuestaria se refiere exclusivamente a los aportes financieros a beneficiarios terceros. Las contribuciones no podrán utilizarse para la adquisición de medicamentos, pesticidas y/o fertilizantes minerales. El procedimiento de selección de beneficiarios terceros debe explicarse en la descripción del proyecto. Pruebas: véase la línea subpresupuestaria.) | D133: =IF('Datos básicos'!C21="Sí",CONCATENATE("Ayuda:",Ejemplo!O59),"") ->  | I133: =SUM(I134:I143) -> 0.00 € | L133: =IF(L5="VE","ATENCIÓN: La GIZ no puede asumir los costos que se generan por las fluctuaciones cambiarias.","") -> 
B134: XXX (facturación contra ...) | I134: =ROUND(D134*H134,2) -> 0.00 € | L134: Sin cambios
B135: XXX (facturación contra ...) | I135: =ROUND(D135*H135,2) -> 0.00 € | L135: Sin cambios
B136: XXX (facturación contra ...) | I136: 0.00 € | L136: Sin cambios
B137: XXX (facturación contra ...) | I137: 0.00 € | L137: Sin cambios
B138: XXX (facturación contra ...) | I138: 0.00 € | L138: Sin cambios
B139: XXX (facturación contra ...) | I139: 0.00 € | L139: Sin cambios
B140: XXX (facturación contra ...) | I140: 0.00 € | L140: Sin cambios
B141: XXX (facturación contra ...) | I141: 0.00 € | L141: Sin cambios
B142: XXX (facturación contra ...) | I142: 0.00 € | L142: Sin cambios
B143: XXX (facturación contra ...) | I143: =ROUND(D143*H143,2) -> 0.00 € | L143: Sin cambios
A144: 8 | B144: Costes de participación equitativa (costes "Fair-Shared") | D144: =IF('Datos básicos'!C21="Sí",CONCATENATE("Ayuda:",Ejemplo!O64),"") ->  | I144: =SUM(I145:I149) -> 0.00 €
I145: =ROUND(H145,2) -> 0.00 € | L145: Sin cambios
I146: =ROUND(H146,2) -> 0.00 € | L146: Sin cambios
I147: 0.00 € | L147: Sin cambios
I148: 0.00 € | L148: Sin cambios
I149: 0.00 € | L149: Sin cambios
B150: Subtotal costos directos | I150: =I6+I44+I74+I93+I99+I116+I133+I144 -> 0.00 €
A151: 9 | B151: Costos generales de administración | D151: =IF('Datos básicos'!C21="Sí",CONCATENATE("Ayuda:",Ejemplo!O68),"") ->  | I151: =I152 -> 0.00 €
B152: Costos generales de administración (sobre las líneas presupuestarias 1-X) | D152: ='Datos básicos'!E8 -> 0.00% | H152: =I150 -> 0.00 € | I152: =ROUND(D152*H152,2) -> 0.00 € | L152: Sin cambios
B153: Subtotal financiamiento de la GIZ (hasta / contra justificante)* (costos directos + costos generales de administración) | I153: =I150+I151 -> 0.00 €
A154: 10 | B154: Transferencia de financiamientos a receptores terceros —debe presentarse un presupuesto detallado— | D154: =IF('Datos básicos'!C21="Sí",CONCATENATE("Ayuda:",Ejemplo!O71),"") ->  | I154: =SUM(I155:I160) -> 0.00 €
B155: XYZ (nombre del receptor tercero) | D155: Transferencia | H155: ='Transferencia de financiamiento'!I144 -> 0.00 € | I155: =H155 -> 0.00 € | L155: Sin cambios
B156: XYZ (nombre del receptor tercero) | D156: Transferencia | H156: 0.00 € | I156: =H156 -> 0.00 € | L156: Sin cambios
B157: XYZ (nombre del receptor tercero) | D157: Transferencia | H157: 0.00 € | I157: 0.00 € | L157: Sin cambios
B158: XYZ (nombre del receptor tercero) | D158: Transferencia | H158: 0.00 € | I158: 0.00 € | L158: Sin cambios
B159: XYZ (nombre del receptor tercero) | D159: Transferencia | H159: 0.00 € | I159: 0.00 € | L159: Sin cambios
B160: XYZ (nombre del receptor tercero) | D160: Transferencia | H160: 0.00 € | I160: 0.00 € | K160: Porcentajes | L160: Sin cambios
B161: Contribución de la GIZ (hasta / contra justificante)* | I161: =I153+I154 -> 0.00 € | K161: =IFERROR(I161/$I$171,"") -> 
A162: 11 | B162: Contribución propio / financiamiento de terceros | D162: =IF('Datos básicos'!C21="Sí",CONCATENATE("Ayuda:",Ejemplo!O76),"") ->  | J162: =SUM(J163:J170) -> 0.00 €
B163: =_xlfn.IFS('Datos básicos'!C9="No","sin fondos financieros propios",'Datos básicos'!C9="Sí",'Datos básicos'!C3,'Datos básicos'!C9="Seleccionar", "Introduzca primero los datos básicos",TRUE,"") -> Introduzca primero los datos básicos | D163: Contribución | H163: =IF('Datos básicos'!C9="Sí",'Datos básicos'!E9,"") ->  | J163: =H163 ->  | K163: =IFERROR(J163/$I$171,"") ->  | L163: Sin cambios
B164: =_xlfn.IFS('Datos básicos'!C10=0,"No financiamanto de terceros",'Datos básicos'!C10= "Seleccionar", "Introduzca primero los datos básicos",'Datos básicos'!C10>0,'Datos básicos'!E10,TRUE,"") -> No financiamanto de terceros | D164: Contribución | H164: =_xlfn.IFS('Datos básicos'!$C$10="Auswählen", "",'Datos básicos'!$C$10>0,'Datos básicos'!G10, TRUE,"") ->  | J164: =H164 ->  | K164: =IFERROR(J164/$I$171,"") ->  | L164: Sin cambios
B165: =_xlfn.IFS('Datos básicos'!C10=0,"No financiamanto de terceros",'Datos básicos'!C10= "Seleccionar", "Introduzca primero los datos básicos",'Datos básicos'!C10>0,'Datos básicos'!E11,TRUE,"") -> No financiamanto de terceros | D165: Contribución | H165: =_xlfn.IFS('Datos básicos'!$C$10="Auswählen", "",'Datos básicos'!$C$10>0,'Datos básicos'!G11, TRUE,"") ->  | L165: Sin cambios
B166: =_xlfn.IFS('Datos básicos'!C10=0,"No financiamanto de terceros",'Datos básicos'!C10= "Seleccionar", "Introduzca primero los datos básicos",'Datos básicos'!C10>0,'Datos básicos'!E12,TRUE,"") -> No financiamanto de terceros | D166: Contribución | H166: =_xlfn.IFS('Datos básicos'!$C$10="Auswählen", "",'Datos básicos'!$C$10>0,'Datos básicos'!G12, TRUE,"") ->  | K166: =IFERROR(J166/$I$171,"") ->  | L166: Sin cambios
B167: =_xlfn.IFS('Datos básicos'!C10=0,"No financiamanto de terceros",'Datos básicos'!C10= "Seleccionar", "Introduzca primero los datos básicos",'Datos básicos'!C10>0,'Datos básicos'!E13,TRUE,"") -> No financiamanto de terceros | D167: Contribución | H167: =_xlfn.IFS('Datos básicos'!$C$10="Auswählen", "",'Datos básicos'!$C$10>0,'Datos básicos'!G13, TRUE,"") ->  | L167: Sin cambios
B168: =_xlfn.IFS('Datos básicos'!C10=0,"No financiamanto de terceros",'Datos básicos'!C10= "Seleccionar", "Introduzca primero los datos básicos",'Datos básicos'!C10>0,'Datos básicos'!E14,TRUE,"") -> No financiamanto de terceros | D168: Contribución | H168: =_xlfn.IFS('Datos básicos'!$C$10="Auswählen", "",'Datos básicos'!$C$10>0,'Datos básicos'!G14, TRUE,"") ->  | L168: Sin cambios
B169: =_xlfn.IFS('Datos básicos'!C10=0,"No financiamanto de terceros",'Datos básicos'!C10= "Seleccionar", "Introduzca primero los datos básicos",'Datos básicos'!C10>0,'Datos básicos'!E15,TRUE,"") -> No financiamanto de terceros | D169: Contribución | H169: =_xlfn.IFS('Datos básicos'!$C$10="Auswählen", "",'Datos básicos'!$C$10>0,'Datos básicos'!G15, TRUE,"") ->  | L169: Sin cambios
B170: =_xlfn.IFS('Datos básicos'!C10=0,"No financiamanto de terceros",'Datos básicos'!C10= "Seleccionar", "Introduzca primero los datos básicos",'Datos básicos'!C10>0,'Datos básicos'!E16,TRUE,"") -> No financiamanto de terceros | D170: Contribución | H170: =_xlfn.IFS('Datos básicos'!$C$10="Auswählen", "",'Datos básicos'!$C$10>0,'Datos básicos'!G16, TRUE,"") ->  | J170: =H170 ->  | K170: =IFERROR(J170/$I$171,"") ->  | L170: Sin cambios
B171: Financiamiento total | I171: =I161+J162 -> 0.00 € | K171: =SUM(K161:K170) -> 0.00%
B173: *Todas las líneas presupuestarias (excepto los costos generales de administración) deben liquidarse contra justificante.
B175: Información: En el caso de que esté previsto financiar adjudicaciones para servicios externos y/o para equipos y materiales y/o suministros con cargo a fondos de la GIZ, deben observarse las directrices de adjudicación relevantes en virtud del texto del contrato.
B177: Los beneficios del receptor no se financian.
B179: En caso de complementos al contrato: Realice las adaptaciones presupuestarias sobre la base del presupuesto acordado contractualmente por última vez y destaque los cambios en color. La GIZ no puede asumir los costos que se generan por las fluctuaciones cambiarias.

Sheet Transferencia de financiamiento
A1: Presupuesto - Anexo 1 | D1: Nombre del receptor tercero: | J1: ='Datos básicos'!C23 -> 00:00:00 | N1: sin cambios
A2: =IF(NOT(ISBLANK('Datos básicos'!C7)),CONCATENATE("Número del contrato:",'Datos básicos'!C7),"") ->  | N2: cambios
B3: Descripción | C3: Có- digo | D3: Canti-dad | E3: Unidad (persona) | F3: Número | G3: Unidad (p. ej., mes, contrato, vuelo…) | H3: Subvencio-nable hasta en EUR (precio por unidad) | I3: Contribución total de la GIZ en EUR (hasta) | J3: Contribución propia / financiamiento de terceros en EUR (hasta) | L3: =IF($L$4="VE",CONCATENATE("En el caso de ajustes contractuales",CHAR(10),"¿Ha cambiado la línea presupuestaria?"),"") -> 
B4: =IF('Datos básicos'!C21="Sí","Nota: Las celdas con fondo azul deben ser rellenados por el receptor","") ->  | I4: =IF('Datos básicos'!C21="Sí","Nota: se calculan automáticamente","") ->  | L4: =IF('Datos básicos'!C5="Complemento al contrato","VE","NOVE") -> NOVE
A5: 1 | B5: Personal (Nota: Sólo pueden liquidarse costos directos de personal (costo bruto mensual del personal para el empleador). Los suplementos, como los costos generales de personal, que se calculan de manera prorrateada sobre el personal, no son subvencionables. Indique únicamente los títulos de las funciones, no los nombres de las personas. a) Costes de colaboradores y colaboradoras asalariados del receptor (sólo empleados de su organización): la acreditación debe realizarse en forma de liquidaciones salariales o, en el caso de financiamientos parciales, en forma de liquidaciones salariales y registros de tiempos trabajados; (véase el enlace en 1b). b) Costes de peritos y peritas integrados, quienes son personas autoempleadas o empleadas por un tercero y cedidas al receptor y que, por tanto, no trabajan sobre la base de un contrato de trabajo con el receptor, sino que lo hacen siguiendo las instrucciones / bajo la supervisión del receptor, toda vez que lo permita la ley aplicable al contrato de los peritos y peritas integrados. Para las formas de prueba, véase: Requisitos en cuanto al presupuesto y a la ejecución financiera (Anexo 3a).) | D5: =IF('Datos básicos'!C21="Sí",CONCATENATE("Ayuda:",Ejemplo!O5),"") ->  | I5: =SUM(I6:I42) -> 0.00 € | J5: Debe evitarse la financiación prorrateada de las partidas presupuestarias y aplicarse únicamente a los costes de personal y a los costes de reparto equitativo (costes "Fair-Shared"). Otros costes incurridos en el curso de la ejecución del proyecto que no sean financiados por la GIZ deberán calcularse por separado, ya sea como contribución propia o como financiamiento de terceros. | K5: =IF(SUM(I5,#REF!,I43)>0.4*I143,1,0) ->  | L5: =IF(L4="VE","ATENCIÓN: La GIZ no puede asumir los costos que se generan por las fluctuaciones cambiarias.","") -> 
E6: Persona | G6: Meses | I6: =ROUND(D6*F6*H6,2) -> 0.00 € | L6: sin cambios
E7: Persona | G7: Meses | I7: =ROUND(D7*F7*H7,2) -> 0.00 € | L7: Sin cambios
E8: Persona | G8: Meses | I8: 0.00 € | L8: sin cambios
E9: Persona | G9: Meses | I9: 0.00 € | L9: sin cambios
E10: Persona | G10: Meses | I10: =ROUND(D10*F10*H10,2) -> 0.00 € | L10: sin cambios
E11: Persona | G11: Meses | I11: 0.00 € | L11: Sin cambios
E12: Persona | G12: Meses | I12: 0.00 € | L12: Sin cambios
E13: Persona | G13: Meses | I13: 0.00 € | L13: Sin cambios
E14: Persona | G14: Meses | I14: 0.00 € | L14: Sin cambios
E15: Persona | G15: Meses | I15: 0.00 € | L15: Sin cambios
E16: Persona | G16: Meses | I16: =ROUND(D16*F16*H16,2) -> 0.00 € | L16: Sin cambios
E17: Persona | G17: Meses | I17: 0.00 € | L17: Sin cambios
E18: Persona | G18: Meses | I18: 0.00 € | L18: sin cambios
E19: Persona | G19: Meses | I19: =ROUND(D19*F19*H19,2) -> 0.00 € | L19: Sin cambios
E20: Persona | G20: Meses | I20: 0.00 € | L20: Sin cambios
E21: Persona | G21: Meses | I21: 0.00 € | L21: Sin cambios
E22: Persona | G22: Meses | I22: 0.00 € | L22: Sin cambios
E23: Persona | G23: Meses | I23: 0.00 € | L23: Sin cambios
E24: Persona | G24: Meses | I24: 0.00 € | L24: sin cambios
E25: Persona | G25: Meses | I25: 0.00 € | L25: Sin cambios
E26: Persona | G26: Meses | I26: 0.00 € | L26: Sin cambios
E27: Persona | G27: Meses | I27: 0.00 € | L27: Sin cambios
E28: Persona | G28: Meses | I28: 0.00 € | L28: Sin cambios
E29: Persona | G29: Meses | I29: 0.00 € | L29: Sin cambios
E30: Persona | G30: Meses | I30: 0.00 € | L30: Sin cambios
E31: Persona | G31: Meses | I31: 0.00 € | L31: Sin cambios
E32: Persona | G32: Meses | I32: 0.00 € | L32: sin cambios
E33: Persona | G33: Meses | I33: 0.00 € | L33: Sin cambios
E34: Persona | G34: Meses | I34: 0.00 € | L34: sin cambios
E35: Persona | G35: Meses | I35: 0.00 € | L35: Sin cambios
E36: Persona | G36: Meses | I36: 0.00 € | L36: Sin cambios
E37: Persona | G37: Meses | I37: 0.00 € | L37: Sin cambios
E38: Persona | G38: Meses | I38: 0.00 € | L38: sin cambios
E39: Persona | G39: Meses | I39: 0.00 € | L39: sin cambios
E40: Persona | G40: Meses | I40: 0.00 € | L40: Sin cambios
E41: Persona | G41: Meses | I41: 0.00 € | L41: Sin cambios
E42: Persona | G42: Meses | I42: 0.00 € | L42: Sin cambios
A43: 2 | B43: Servicios externos (tipo/contenido del servicio) | D43: =IF('Datos básicos'!C21="Sí",CONCATENATE("Ayuda:",Ejemplo!O11),"") ->  | I43: =SUM(I44:I60) -> 0.00 €
D44: Contrato/contratos | I44: =ROUND(H44,2) -> 0.00 € | L44: sin cambios
D45: Contrato/contratos | I45: =ROUND(H45,2) -> 0.00 € | L45: sin cambios
D46: Contrato/contratos | I46: 0.00 € | L46: Sin cambios
D47: Contrato/contratos | I47: 0.00 € | L47: sin cambios
D48: Contrato/contratos | I48: 0.00 € | L48: Sin cambios
D49: Contrato/contratos | I49: 0.00 € | L49: sin cambios
D50: Contrato/contratos | I50: 0.00 € | L50: Sin cambios
D51: Contrato/contratos | I51: 0.00 € | L51: Sin cambios
D52: Contrato/contratos | I52: 0.00 € | L52: sin cambios
D53: Contrato/contratos | I53: 0.00 € | L53: Sin cambios
D54: Contrato/contratos | I54: 0.00 € | L54: Sin cambios
D55: Contrato/contratos | I55: 0.00 € | L55: sin cambios
D56: Contrato/contratos | I56: 0.00 € | L56: Sin cambios
D57: Contrato/contratos | I57: 0.00 € | L57: sin cambios
D58: Contrato/contratos | I58: 0.00 € | L58: Sin cambios
D59: Contrato/contratos | I59: 0.00 € | L59: sin cambios
D60: Contrato/contratos | I60: 0.00 € | L60: Sin cambios
A61: 3 | B61: Costos de transporte / gastos de viaje | D61: =IF('Datos básicos'!C21="Sí",CONCATENATE("Ayuda:",Ejemplo!O22),"") ->  | I61: =SUM(I62:I77) -> 0.00 €
I62: =ROUND(H62,2) -> 0.00 € | L62: sin cambios
I63: =ROUND(H63,2) -> 0.00 € | L63: sin cambios
I64: 0.00 € | L64: Sin cambios
I65: 0.00 € | L65: sin cambios
I66: 0.00 € | L66: Sin cambios
I67: 0.00 € | L67: Sin cambios
I68: 0.00 € | L68: Sin cambios
I69: 0.00 € | L69: Sin cambios
I70: 0.00 € | L70: Sin cambios
I71: 0.00 € | L71: sin cambios
I72: 0.00 € | L72: Sin cambios
I73: 0.00 € | L73: sin cambios
I74: 0.00 € | L74: Sin cambios
I75: 0.00 € | L75: Sin cambios
I76: 0.00 € | L76: Sin cambios
I77: 0.00 € | L77: sin cambios
A78: 4 | B78: Compensación de CO2 por viajes en avión | D78: =IF('Datos básicos'!C21="Sí",CONCATENATE("Ayuda: ",Ejemplo!O30),"") ->  | I78: =SUM(I79:I90) -> 0.00 €
D79: Compensación | I79: =ROUND(H79,2) -> 0.00 € | L79: sin cambios
D80: Compensación | I80: =ROUND(H80,2) -> 0.00 € | L80: sin cambios
D81: Compensación | I81: 0.00 € | L81: sin cambios
D82: Compensación | I82: 0.00 € | L82: Sin cambios
D83: Compensación | I83: 0.00 € | L83: Sin cambios
D84: Compensación | I84: 0.00 € | L84: sin cambios
D85: Compensación | I85: 0.00 € | L85: Sin cambios
D86: Compensación | I86: 0.00 € | L86: sin cambios
D87: Compensación | I87: 0.00 € | L87: Sin cambios
D88: Compensación | I88: 0.00 € | L88: Sin cambios
D89: Compensación | I89: 0.00 € | L89: sin cambios
D90: Compensación | I90: 0.00 € | L90: sin cambios
A91: 5 | B91: Adquisición de equipos y materiales | D91: =IF('Datos básicos'!C21="Sí",CONCATENATE("Ayuda:",Ejemplo!O37),"") ->  | I91: =SUM(I92:I107) -> 0.00 €
I92: =ROUND(H92,2) -> 0.00 € | L92: sin cambios
I93: =ROUND(H93,2) -> 0.00 € | L93: Sin cambios
I94: 0.00 € | L94: Sin cambios
I95: 0.00 € | L95: Sin cambios
I96: 0.00 € | L96: Sin cambios
I97: 0.00 € | L97: Sin cambios
I98: 0.00 € | L98: sin cambios
I99: 0.00 € | L99: Sin cambios
I100: 0.00 € | L100: Sin cambios
I101: 0.00 € | L101: Sin cambios
I102: 0.00 € | L102: Sin cambios
I103: 0.00 € | L103: sin cambios
I104: 0.00 € | L104: Sin cambios
I105: 0.00 € | L105: Sin cambios
I106: 0.00 € | L106: Sin cambios
I107: 0.00 € | L107: sin cambios
A108: 6 | B108: Otros costos / consumibles | D108: =IF('Datos básicos'!C21="Sí",CONCATENATE("Ayuda:",Ejemplo!O48),"") ->  | I108: =SUM(I109:I124) -> 0.00 €
I109: =ROUND(H109,2) -> 0.00 € | L109: sin cambios
I110: =ROUND(H110,2) -> 0.00 € | L110: sin cambios
I111: 0.00 € | L111: Sin cambios
I112: 0.00 € | L112: Sin cambios
I113: 0.00 € | L113: Sin cambios
I114: 0.00 € | L114: Sin cambios
I115: 0.00 € | L115: Sin cambios
I116: 0.00 € | L116: Sin cambios
I117: 0.00 € | L117: sin cambios
I118: 0.00 € | L118: Sin cambios
I119: 0.00 € | L119: Sin cambios
I120: 0.00 € | L120: sin cambios
I121: 0.00 € | L121: Sin cambios
I122: 0.00 € | L122: Sin cambios
I123: 0.00 € | L123: Sin cambios
I124: 0.00 € | L124: sin cambios
A125: 7 | B125: Recursos para apoyar directamente a beneficiarios terceros (Indicación: Esta línea presupuestaria se refiere exclusivamente a los aportes financieros a beneficiarios terceros. Las contribuciones no podrán utilizarse para la adquisición de medicamentos, pesticidas y/o fertilizantes minerales. El procedimiento de selección de beneficiarios terceros debe explicarse en la descripción del proyecto. Pruebas: véase la línea subpresupuestaria). | D125: =IF('Datos básicos'!C21="Sí",CONCATENATE("Ayuda:",Ejemplo!O59),"") ->  | I125: =SUM(I126:I131) -> 0.00 € | L125: =IF(L124="VE","ATENCIÓN: La GIZ no puede asumir los costos que se generan por las fluctuaciones cambiarias.","") -> 
B126: XXX (facturación contra ...) | I126: =ROUND(D126*H126,2) -> 0.00 € | L126: sin cambios
B127: XXX (facturación contra ...) | I127: =ROUND(D127*H127,2) -> 0.00 € | L127: sin cambios
B128: XXX (facturación contra ...) | I128: 0.00 € | L128: Sin cambios
B129: XXX (facturación contra ...) | I129: 0.00 € | L129: Sin cambios
B130: XXX (facturación contra ...) | I130: 0.00 € | L130: sin cambios
B131: XXX (facturación contra ...) | I131: 0.00 € | L131: sin cambios
A132: 8 | B132: Costes de participación equitativa (costes "Fair-Shared") | D132: =IF('Datos básicos'!C21="Sí",CONCATENATE("Ayuda:",Ejemplo!O64),"") ->  | I132: =SUM(I133:I139) -> 0.00 €
I133: =ROUND(H133,2) -> 0.00 € | L133: sin cambios
I134: =ROUND(H134,2) -> 0.00 € | L134: sin cambios
I135: 0.00 € | L135: sin cambios
I136: 0.00 € | L136: Sin cambios
I137: 0.00 € | L137: sin cambios
I138: 0.00 € | L138: Sin cambios
I139: 0.00 € | L139: sin cambios
B140: Subtotal costos directos | I140: =I132+I125+I108+I91+I78+I61+I43+I5 -> 0.00 €
A141: 9 | B141: Costos generales de administración | D141: =IF('Datos básicos'!C21="Sí",CONCATENATE("Ayuda:",Ejemplo!O68),"") ->  | I141: =I142 -> 0.00 €
B142: Costos generales de administración (sobre las líneas presupuestarias 1-X) | D142: 0.00% | H142: =I140 -> 0.00 € | I142: =ROUND(D142*H142,2) -> 0.00 € | L142: sin cambios
B143: Subtotal financiamiento de la GIZ (hasta / contra justificante)* (costos directos + costos generales de administración) | I143: =I140+I141 -> 0.00 €
B144: Contribución de la GIZ (hasta / contra justificante)* | I144: =I143 -> 0.00 €
B146: *Todas las líneas presupuestarias (excepto los costos generales de administración) deben liquidarse contra justificante.
B148: Información: En el caso de que esté previsto financiar adjudicaciones para servicios externos y/o para equipos y materiales y/o suministros con cargo a fondos de la GIZ, deben observarse las directrices de adjudicación relevantes en virtud del texto del contrato.
B150: Los beneficios del receptor no se financian.
B152: En caso de complementos al contrato: Realice las adaptaciones presupuestarias sobre la base del presupuesto acordado contractualmente por última vez y destaque los cambios en color. La GIZ no puede asumir los costos que se generan por las fluctuaciones cambiarias.

Sheet Ejemplo
A1: Presupuesto - Anexo 1 | J1: ='Datos básicos'!C34 -> 00:00:00 | O1: Instrucciones: Esta hoja sirve únicamente como orientación para cumplimentar la hoja “Presupuesto financiamientos”.
J2: 2024-02
B3: Descripción | C3: Código | D3: Número | E3: Unidad (persona) | F3: Número | G3: Unidad (p. ej., mes, contrato, vuelo…) | H3: Subvencio-nable hasta en EUR (precio por unidad) | I3: Contribución total de la GIZ en EUR (hasta) | J3: Contribución propia / financiamiento de terceros en EUR (hasta) | O3: Indicaciones generales: Este formato del presupuesto es válido como base de liquidación. Si lo desea, para su uso interno puede crear otros archivos con información más detallada. Todas las partidas indicadas en el presupuesto se deben reflejar en la descripción del proyecto para que quede clara la referencia al proyecto. La tabla dispone de fórmulas que deben conservarase. Mantenga el formato con dos decimales. Se recomienda redondear al alza las unidades en la medida de lo posible. Los costos se acuerdan con un valor de “hasta”.
B4: Nota: Las celdas con fondo azul deben ser rellenados por el receptor | I4: Nota: se calculan automáticamente | O4: Indicaciones para la cumplimentación
A5: 1 | B5: Personal (Nota: Sólo pueden liquidarse costos directos de personal (costo bruto mensual del personal para el empleador). Los suplementos, como los costos generales de personal, que se calculan de manera prorrateada sobre el personal, no son subvencionables. Indique únicamente los títulos de las funciones, no los nombres de las personas. a) Costes de colaboradores y colaboradoras asalariados del receptor (sólo empleados de su organización): la acreditación debe realizarse en forma de liquidaciones salariales o, en el caso de financiamientos parciales, en forma de liquidaciones salariales y registros de tiempos trabajados; (véase el enlace en 1b). b) Costes de peritos y peritas integrados, quienes son personas autoempleadas o empleadas por un tercero y cedidas al receptor y que, por tanto, no trabajan sobre la base de un contrato de trabajo con el receptor, sino que lo hacen siguiendo las instrucciones / bajo la supervisión del receptor, toda vez que lo permita la ley aplicable al contrato de los peritos y peritas integrados. Para las formas de prueba, véase: Requisitos en cuanto al presupuesto y a la ejecución financiera (Anexo 3a).) | I5: =SUM(I6:I10) -> 94,000.00 € | J5: Debe evitarse la financiación prorrateada de las partidas presupuestarias y aplicarse únicamente a los costes de personal y a los costes de reparto equitativo (costes "Fair-Shared"). Otros costes incurridos en el curso de la ejecución del proyecto que no sean financiados por la GIZ deberán calcularse por separado, ya sea como contribución propia o como financiamiento de terceros. | O5: La columna “Subvencionable hasta” debería indicar siempre el costo bruto mensual del personal para el empleador. Por favor, introduzca el porcentaje a financiar por la GIZ en la columna D. Pueden tenerse en cuenta los costes de personal auxiliares reglamentarios en los que se incurra de conformidad con la legislación del respectivo contrato de trabajo. Por norma general son financiables las contribuciones sociales y los pagos acordados en virtud del contrato de trabajo o del convenio colectivo (excepto los pagos de bonificaciones o las participaciones en los beneficios). Otros gastos accesorios deberán concertarse, examinarse e integrarse en la línea presupuestaria en forma de nota antes de la elaboración del contrato. Los contratos de miniempleos o de personal temporal estudiantil se deben atribuir a los costos de personal, aun cuando no se abonen contribuciones sociales. Si está previsto financiar proporcionalmente a varias personas (por ejemplo, 3 personas a un 75 %) incrementar el número de meses correspondientemente e incluir el número de personas en la descripción de la línea presupuestaria.
B6: Encargado / encargada de la gestión de proyectos | D6: 100% | E6: Persona | F6: 20 | G6: Meses | H6: 3,000.00 € | I6: =D6*F6*H6 -> 60,000.00 €
B7: Responsable de finanzas | D7: 50% | E7: Persona | F7: 20 | G7: Meses | H7: 2,200.00 € | I7: =D7*F7*H7 -> 22,000.00 €
B8: Indemnizaciones por despido / Reservas por disposición legal | D8: 100% | E8: Persona | F8: 20 | G8: Meses | H8: 600.00 € | I8: =D8*F8*H8 -> 12,000.00 €
E9: Persona | G9: Meses | I9: =D9*F9*H9 -> 0.00 €
E10: Persona | G10: Meses | I10: =D10*F10*H10 -> 0.00 €
A11: 2 | B11: Servicios externos (tipo/contenido del servicio) | I11: =SUM(I12:I21) -> 7,000.00 | O11: Por favor, indique el nombre de la función; ningún detalle del contrato (horas de trabajo, etc.); mencionar solo el valor planificado (¡deben observarse las directrices de adjudicación relevantes según el texto del contrato!); por tipo de servicio debería utilizarse una línea presupuestaria (todos los costos generados durante la realización de la prestación en el marco de un contrato de servicios, por ejemplo, capacitación, viajes, se indican en una línea presupuestaria). Eventos: Los prestaciones que realiza un mismo oferente deben indicarse en una línea presupuestaria. (Por ejemplo, si el catering y el lugar del evento son ofertados por un hotel, entonces deben indicarse en una misma línea presupuestaria; si se reserva otro hotel para el alojamiento, ese se incluye en una línea presupuestaria individual). Los ingresos que percibe el receptor en concepto de la organización de eventos no se pueden financiar con cargo al contrato. Sólo se financian los costos que puedan acreditar fehacientemente.
B12: Moderación | D12: 1 | E12: Contrato/contratos | H12: 5,000.00 € | I12: =D12*H12 -> 5,000.00 €
B13: Catering y alquiler de salas | D13: 1 | E13: Contrato/contratos | H13: 2,000.00 € | I13: =D13*H13 -> 2,000.00 €
B14: Experto / experta en tecnología solar | D14: 1 | E14: Contrato/contratos | I14: 0.00 €
B15: Experto / experta en... | D15: 1 | E15: Contrato/contratos | I15: 0.00 €
B16: personal externo (no en régimen asalariado con obligación de cotizar a la seguridad social con el receptor) | D16: 1 | E16: Contrato/contratos | I16: 0.00 €
B17: Contratos de asesoramiento | D17: 1 | E17: Contrato/contratos | I17: 0.00 €
B18: Empresas externas, p. ej. para transportes en autobús | D18: 1 | E18: Contrato/contratos | I18: 0.00 €
E19: Contrato/contratos | I19: 0.00 €
E20: Contrato/contratos | I20: 0.00 €
E21: Contrato/contratos | I21: 0.00 €
A22: 3 | B22: Costos de transporte / gastos de viaje | I22: =SUM(I23:I29) -> 14,500.00 € | O22: Los gastos de viaje suelen incluir todo tipo de transporte (por ejemplo, combustible, alquiler de vehículos, costes de vuelos, traslados en autobús, asignaciones de precio por kilometraje (si están presupuestados), alojamiento, viáticos, visados). Para la facturación se utilizarán facturas y/o justificantes adecuados de los viáticos (por ejemplo, informes de gastos firmados por los participantes). Por favor, no especifique el número de vuelos - cualquier variación requerirá modificaciones del contrato. En caso de auditoría, se comprobará el número de vuelos.
B23: Vuelos internacionales | D23: Vuelos | H23: 4,000.00 € | I23: =H23 -> 4,000.00 €
B24: Vuelos nacionales | D24: Vuelos | H24: 500.00 € | I24: =H24 -> 500.00 €
B25: Gastos de viaje internacionales (viáticos / viáticos por pernoctación, medios de transporte, visado, vacunas necesarias) | D25: Unidad | H25: 10,000.00 € | I25: 10,000.00 €
B26: Gastos de viaje nacionales (viáticos / viáticos por pernoctación, medios de transporte) | D26: Unidad | I26: 0.00 €
B27: Costos de transporte de mercancías | D27: Unidad | I27: 0.00 €
B28: Gastos de viaje de participantes en talleres | D28: Unidad | I28: 0.00 €
I29: 0.00 €
A30: 4 | B30: Compensación de CO2 por viajes en avión | I30: =SUM(I31:I36) -> 500.00 € | O30: Las emisiones de CO2 causadas por los viajes en avión pueden compensarse, si no es posible evitarlas y reducirlas. El requisito previo es que estos vuelos se contabilicen en la línea presupuestaria "Costes de transporte / gastos de viaje". La prueba de los costes de compensación de los vuelos son los recibos del proveedor de la compensación, de los que debe facilitarse las siguientes informaciones: Ruta del vuelo (inicio y destino), fecha, clase de reserva y el importe calculado de CO2. Si esta información no figura en los recibos del proveedor de compensación, la información sobre la ruta del vuelo (inicio, destino, fecha, clase de reserva) y la cantidad calculada de CO2 debe ser añadida por el receptor.
B31: Vuelos internacionales | D31: Compensación | H31: 300.00 € | I31: =H31 -> 300.00 €
B32: Vuelos nacionales | D32: Compensación | H32: 200.00 € | I32: =H32 -> 200.00 €
I33: 0.00 €
I34: 0.00 €
I35: 0.00 €
I36: 0.00 €
A37: 5 | B37: Adquisición de equipos y materiales | I37: =SUM(I38:I47) -> 4,000.00 € | O37: Los bienes que se adquieren y acreditan en una misma factura, deben indicarse en una línea presupuestaria. P. ej., el equipamiento de TI se puede consignar como una línea presupuestaria. En ese caso debería incluirse entre paréntesis una descripción más detallada de los equipos y materiales que previsiblemente se adquirirán. En el caso de medicamentos y productos agroquímicos, para una autorización se requiere información adicional. Para ello, rellene las hojas "Medicamentos”, “Pesticidas y fertilizantes minerales”.
B38: Equipamiento de TI (computadora portátil, impresora, proyector, accesorios) | D38: Adquisición | H38: 4,000.00 € | I38: =H38 -> 4,000.00 €
B39: Equipamiento fotográfico (cámara y accesorios) | I39: =D39*H39 -> 0.00 €
B40: Máquina XY (indicar en concreto qué máquina, ¡pero no mencionar el modelo concreto ni la empresa!) | I40: 0.00 €
B41: Mobiliario (escritorios, sillas, armarios) | I41: 0.00 €
B42: Indicar exactamente los vehículos, de qué tipo: p. ej. vehículo eléctrico, SUV blindado, escúter... | I42: 0.00 €
B43: Teléfonos móviles | I43: 0.00 €
B44: Aportes en especie a beneficiarios terceros (prueba en forma de documentos de adquisición y el protocolo de entrega) | I44: 0.00 €
I45: 0.00 €
I46: 0.00 €
I47: 0.00 €
A48: 6 | B48: Otros costos / consumibles | D48: =IF('Datos básicos'!C32="Ja",CONCATENATE("AUSFÜLLHILFE: ",TRIM(Ejemplo!O71)),"") ->  | I48: =SUM(I49:I58) -> 100.00 € | O48: Tenga en cuenta que los costos indirectos se enmarcan dentro de los costos generales de administración. Solo se pueden presupuestar como líneas presupuestarias individuales los costos directos. Cuando es posible indicar los costos de alquiler, se pueden consignar solo los costos directos, o sea, el alquiler neto sin los gastos accesorios. Los gastos accesorios son costos indirectos y como tales deben incluirse en los costos generales de administración. Al contrario que los equipos y materiales adquiridos, que se utilizan durante un período más largo, en el caso de los consumibles se trata de bienes que se consumen, como por ejemplo cartuchos para impresoras, papel de impresión.
B49: Material de oficina (papel de impresión, cartuchos para impresoras, material de escritura) | D49: Unidad | H49: 100.00 | I49: =H49 -> 100.00 €
B50: Software de TI, licencias | I50: =H50 -> 0.00 €
B51: Material de embalaje para xxx | I51: 0.00 €
B52: Material de laboratorio | I52: 0.00 €
B53: Productos higiénicos | I53: 0.00 €
B54: Herramientas | I54: 0.00 €
B55: Agua | I55: 0.00 €
B56: Folletos / material publicitario | I56: 0.00 €
B57: Gastos telefónicos, tarjetas telefónicas… | I57: 0.00 €
I58: 0.00 €
A59: 7 | B59: Recursos para apoyar directamente a beneficiarios terceros (Indicación: Esta línea presupuestaria se refiere exclusivamente a los aportes financieros a beneficiarios terceros. Las contribuciones no podrán utilizarse para la adquisición de medicamentos, pesticidas y/o fertilizantes minerales. El procedimiento de selección de beneficiarios terceros debe explicarse en la descripción del proyecto. Pruebas: véase la línea subpresupuestaria). | D59: =IF('Datos básicos'!C32="Ja",CONCATENATE("AUSFÜLLHILFE: ",TRIM(Ejemplo!O77)),"") ->  | I59: =SUM(I60:I63) -> 75,600.00 € | O59: Tenga en cuenta la indicación en la línea presupuestaria. Los justificantes deben acordarse en el presupuesto y los criterios de selección deben exponerse en la descripción del proyecto. Importante: En este caso se trata solo de beneficiarios que se benefician del proyecto del receptor. Entre estos se cuentan el fomento de empresas emergentes, el fomento de iniciativas, medidas de efectivo por trabajo, concursos de fomento, becas y similares. Se requiere concertación respecto a los justificantes. Respecto a los detalles se requiere asesoramiento de la sección Gestión de contratos.
B60: Efectivo por trabajo (La liquidación se realiza contra la lista de participación, confirmación de recepción mediante firma o huella dactilar; el procedimiento de selección se muestra en la descripción del proyecto) | D60: 20 | E60: Personas | H60: 30.00 € | I60: =D60*H60 -> 600.00 €
B61: Financiación de start-up (la liquidación se efectúa contra prueba de utilización efectiva por parte del beneficiario tercero); se aplica el artículo 5.2 del contrato. | D61: 5 | E61: Start-ups | H61: 15,000.00 € | I61: =D61*H61 -> 75,000.00 €
I62: 0.00 €
I63: 0.00 €
A64: 8 | B64: Costes de participación equitativa (costes "Fair-Shared") | I64: =SUM(I65:I66) -> 0.00 € | O64: Esta línea presupuestaria es sólo para organizaciones que trabajan con una asignación o un prorrateo de gastos generales en sus sistemas contables y pueden demostrarlo en consecuencia, siempre que estos costes no se asignen a gastos generales de administración. El tipo de verificación se determina en cada caso concreto. Un ejemplo concreto es la verificación porcentual basada en los costes totales y los registros de tiempo.
B65: Costes de participación equitativa (costes "Fair-Shared") directos (6,42% sobre los costes directos de las líneas presupuestarias 1 - 6, basados en el modelo de costes de participación equitativa del receptor). | E65: Unidad | I65: =D65*H65 -> 0.00 €
E66: Unidad | I66: =D66*H66 -> 0.00 €
B67: Subtotal costos directos | I67: =I48+I37+I11+I5+I22+I30+I59+I64 -> 195,700.00 €
A68: 9 | B68: Costos generales de administración | I68: =I69 -> 9,785.00 € | O68: Normalmente los gastos generales de administración son asumidos como aporte proprio del receptor del financiamiento. Si el receptor del financiamiento no puede asumirlos, la GIZ puede hacerse cargo de un pequeño porcentaje de los gastos generales de administración. La clase y la cuantía de los gastos deben ser confirmados previamente por un auditor o una auditora. Si los gastos generales de administración se calculan con base a menos líneas presupuestarias, se requiere informar a la gestión de contratos al respecto.
B69: Costos generales de administración (sobre las líneas presupuestarias 1-8) | D69: 5.00% | H69: =I67 -> 195,700.00 € | I69: =ROUND(D69*H69,2) -> 9,785.00 €
B70: Subtotal financiamiento de la GIZ (hasta / contra justificante)* (costos directos + costos generales de administración) | I70: =I67+I68 -> 205,485.00 €
A71: 10 | B71: Transferencia de financiamientos a receptores terceros —debe presentarse un presupuesto detallado— | D71: =IF('Datos básicos'!C32="Ja",CONCATENATE("AUSFÜLLHILFE: ",TRIM(Ejemplo!#REF!)),"") ->  | I71: =SUM(I72:I74) -> 10,000.00 € | O71: Se trata de contrapartes (co-ejecutores). Se trata de contrapartes que implementan una parte del proyecto de forma autónoma. Deben presentar un presupuesto aparte y someterse a un examen de la aptitud comercial y jurídica.
B72: OPQ | D72: Transferencia | H72: 10,000.00 € | I72: =H72 -> 10,000.00 €
B73: XYZ (nombre del receptor tercero) | D73: Transferencia | I73: =H73 -> 0.00 €
B74: XYZ (nombre del receptor tercero) | D74: Transferencia | I74: 0.00 € | K74: Porcentajes
B75: Contribución de la GIZ (hasta / contra justificante)* | I75: =I70+I71 -> 215,485.00 € | J75: =I75 -> 215,485.00 € | K75: =IFERROR(I75/$I$81,"") -> 93.49%
A76: 11 | B76: Contribución propia / financiamiento de terceros | J76: =SUM(J77:J80) -> 15,000.00 € | O76: Indique solamente el valor total del porcentaje propio / financiamiento de terceros. En la descripción del proyecto se debe incluir una descripción breve del financiamiento proporcional.
B77: ABC (contribución propia) | D77: contribución | H77: 5,000.00 € | J77: =H77 -> 5,000.00 € | K77: =IFERROR(J77/$I$81,"") -> 2.17%
B78: DEF (financiamiento de terceros) | D78: contribución | H78: 10,000.00 € | J78: =H78 -> 10,000.00 € | K78: =IFERROR(J78/$I$81,"") -> 4.34%
K79: =IFERROR(J79/$I$81,"") -> 0.00%
K80: =IFERROR(J80/$I$81,"") -> 0.00%
B81: Financiamiento total | I81: =I75+J76 -> 230,485.00 € | K81: =SUM(K75:K80) -> 100.00%
B83: *Todas las líneas presupuestarias (excepto los costos generales de administración) deben liquidarse contra justificante.
B85: Información: En el caso de que esté previsto financiar adjudicaciones para servicios externos y/o para equipos y materiales y/o suministros con cargo a fondos de la GIZ, deben observarse las directrices de adjudicación relevantes en virtud del texto del contrato.
B88: Los beneficios del receptor no se financian.
B89: Podrán presentarse recibos propios por el uso de instalaciones y locales propios del receptor o del receptor tercero si se confirma además que a) implica la redistribución de los costes propios del receptor o del receptor tercero dentro de su propia organización; la GIZ se reserva el derecho de comprobar los costes propios de forma aleatoria. b) el uso de instalaciones comparables a precios de mercado no supone un ahorro de costes.
B90: En caso de complementos al contrato: Realice las adaptaciones presupuestarias sobre la base del presupuesto acordado contractualmente por última vez y destaque los cambios en color. La GIZ no puede asumir los costos que se generan por las fluctuaciones cambiarias. | O90: En la solicitud de modificación del contrato deben explicarse las reasignaciones presupuestarias. Especialmente en caso de que se incrementen los costos de personal deberá indicarse un motivo.
